bitfinex/quotes_SOLUSD_20220306
["timestamp","ask_amount","ask_price","bid_price","bid_amount"]
[1646593454983,3.00875793,85.903,85.879,2.1454039]
[1646593455184,1.52832908,85.883,85.879,2.1454039]
[1646593455684,1.52832908,85.884,85.879,2.1454039]
[1646593455883,1.52832908,85.885,85.879,2.1454039]
[1646593456084,0.00832908,85.885,85.879,2.1454039]
[1646593456284,3.00875793,85.911,85.88,75.0]
[1646593456484,6.37007649,85.92,85.881,58.31713763]
[1646593456485,3.00875793,85.912,85.881,58.31713763]
[1646593456687,3.00875793,85.911,85.881,58.31713763]
[1646593456883,3.00875793,85.909,85.881,58.31713763]
[1646593457284,3.00875793,85.91,85.881,58.31713763]
[1646593457687,3.00875793,85.911,85.879,2.1454039]
[1646593457887,6.37007649,85.909,85.879,2.1454039]
[1646593458086,3.00875793,85.909,85.879,2.1454039]
[1646593458687,3.00875793,85.907,85.879,2.1454039]
[1646593458890,1.43302148,85.874,85.836,41.4240723]
[1646593459489,1.43302148,85.874,85.837,5.822]
[1646593459689,1.43302148,85.874,85.845,62.32661268]
[1646593460387,1.43302148,85.874,85.846,5.822]
[1646593461792,1.43302148,85.874,85.858,47.53349737]
[1646593461989,1.43302148,85.874,85.86,114.3]
[1646593462590,1.43302148,85.874,85.862,114.3]
[1646593462790,3.00875793,85.904,85.901,5.611338]
[1646593462991,3.00875793,85.905,85.901,5.611338]
[1646593463192,3.00875793,85.907,85.901,5.611338]
[1646593463592,3.00875793,85.905,85.901,5.611338]
[1646593463894,3.03219997,85.904,85.901,5.611338]
[1646593464091,6.37028767,85.903,85.901,5.611338]
[1646593464992,6.37028767,85.903,85.901,2.44014181]
[1646593469998,9.4295306,85.903,85.901,2.44014181]
[1646593470199,6.37028767,85.903,85.901,2.44014181]
[1646593470398,3.05924293,85.909,85.901,2.44014181]
[1646593470599,3.05924293,85.911,85.901,2.44014181]
[1646593471401,4.64468948,85.935,85.902,75.0]
[1646593471600,4.64468948,85.935,85.903,114.3]
[1646593471803,4.64468948,85.949,85.903,114.3]
[1646593472005,6.37028767,85.934,85.903,114.3]
[1646593472203,4.64468948,85.949,85.903,114.3]
[1646593472402,4.64468948,85.949,85.902,75.0]
[1646593472403,4.64468948,85.949,85.901,2.44014181]
[1646593472803,4.64468948,85.947,85.901,2.44014181]
[1646593473520,5.819,85.946,85.901,2.44014181]
[1646593473922,11.01497715,85.945,85.901,2.44014181]
[1646593474121,5.819,85.944,85.901,2.44014181]
[1646593474624,6.37028767,85.943,85.901,2.44014181]
[1646593474823,5.819,85.942,85.901,2.44014181]
[1646593475224,21.30604491,85.941,85.901,2.44014181]
[1646593475424,12.18928767,85.94,85.901,2.44014181]
[1646593475824,6.37028767,85.939,85.901,2.44014181]
[1646593476026,6.37028767,85.939,85.901,116.74014181]
[1646593476225,6.37028767,85.956,85.901,116.74014181]
[1646593476625,4.64468948,85.993,85.901,116.74014181]
[1646593478127,17.461,85.99,85.901,116.74014181]
[1646593478326,6.36708723,85.989,85.901,116.74014181]
[1646593478729,0.00177671,86.0,85.911,114.3]
[1646593478927,0.00730051,85.988,85.933,183.9]
[1646593479128,4.57979862,86.042,85.952,5.52332367]
[1646593479331,4.57979862,86.058,85.962,4.69677567]
[1646593479529,4.57979862,86.058,85.971,118.91570835]
[1646593479832,4.57979862,86.081,85.981,114.3]
[1646593480031,5.812,86.071,85.981,114.3]
[1646593481630,4.57979862,86.081,85.981,157.70940239]
[1646593481830,4.57979862,86.081,85.983,114.3]
[1646593482031,5.812,86.099,85.984,4.83216772]
[1646593482231,5.812,86.099,85.986,114.3]
[1646593482433,5.812,86.099,86.001,114.3]
[1646593482634,5.812,86.099,86.003,114.3]
[1646593483232,5.811,86.071,86.002,63.23460705]
[1646593483834,7.74114913,86.152,86.006,0.11709265]
[1646593484037,7.74114913,86.217,86.073,4.01565544]
[1646593484236,9.16453657,86.221,86.102,0.11709265]
[1646593484436,4.17897545,86.279,86.11,188.85]
[1646593484635,37.6893,86.282,86.111,119.6670287]
[1646593484943,25.65877947,86.228,86.133,114.3]
[1646593485138,25.65877947,86.228,86.141,114.3]
[1646593485337,25.65877947,86.228,86.142,5.801]
[1646593485638,25.65877947,86.228,86.141,114.3]
[1646593485837,5.231,86.227,86.14,13.99]
[1646593487040,5.231,86.227,86.141,58.29426226]
[1646593487639,25.65877947,86.228,86.142,36.82446139]
[1646593487840,5.238,86.227,86.143,114.3]
[1646593488039,5.238,86.227,86.143,145.87245131]
[1646593488239,5.238,86.227,86.143,114.3]
[1646593488440,5.238,86.227,86.144,31.57245131]
[1646593488841,5.238,86.227,86.145,114.3]
[1646593489142,5.238,86.227,86.146,31.57245131]
[1646593489340,25.65877947,86.228,86.16,13.99]
[1646593489740,25.65877947,86.228,86.146,31.57245131]
[1646593489741,7.13639473,86.159,86.146,31.57245131]
[1646593490142,7.13639473,86.159,86.15,13.99]
[1646593492043,7.13639473,86.159,86.026,4.65563579]
[1646593492241,0.86560978,86.158,86.09,13.99]
[1646593492641,27.86316558,86.157,86.09,13.99]
[1646593492842,27.86316558,86.157,86.098,64.73915187]
[1646593493145,0.86560978,86.156,86.09,13.99]
[1646593493542,27.86316558,86.157,86.09,13.99]
[1646593493944,27.86316558,86.157,86.091,48.01745901]
[1646593495243,27.86316558,86.157,86.09,13.99]
[1646593495544,0.49404898,86.156,86.09,13.99]
[1646593496245,27.86316558,86.157,86.091,114.3]
[1646593496447,7.13639473,86.159,86.091,55.23455794]
[1646593497346,23.23724024,86.157,86.091,55.23455794]
[1646593499350,5.23,86.158,86.092,114.3]
[1646593499573,7.13639473,86.159,86.092,114.3]
[1646593500180,5.43329193,86.159,86.092,114.3]
[1646593500376,5.43329193,86.159,86.093,5.59491794]
[1646593500576,5.43329193,86.159,86.101,114.3]
[1646593500775,5.43329193,86.159,86.111,114.3]
[1646593501377,0.00329193,86.159,86.113,114.3]
[1646593501775,0.00329193,86.159,86.115,114.3]
[1646593502176,0.00329193,86.159,86.121,114.3]
[1646593502377,0.00329193,86.159,86.131,114.3]
[1646593506881,0.00329193,86.159,86.132,0.11709265]
[1646593507083,0.00329193,86.159,86.131,114.3]
[1646593509283,0.00329193,86.159,86.13,13.99]
[1646593509483,0.62632322,86.158,86.13,13.99]
[1646593509686,0.62632322,86.158,86.047,57.67]
[1646593509687,0.62632322,86.158,86.11,13.99]
[1646593509883,0.62632322,86.158,86.09,13.99]
[1646593510283,23.8843249,86.156,86.091,55.25669721]
[1646593510487,5.273,86.155,86.091,55.25669721]
[1646593510686,5.273,86.155,86.09,13.99]
[1646593511084,0.4672043,86.154,86.09,13.99]
[1646593511485,5.273,86.155,86.09,13.99]
[1646593512384,5.273,86.155,86.091,114.3]
[1646593513185,5.273,86.155,86.09,13.99]
[1646593513585,5.273,86.155,86.091,114.3]
[1646593514186,23.8843249,86.156,86.091,114.3]
[1646593515086,0.00329193,86.159,86.091,114.3]
[1646593516291,0.00329193,86.159,86.101,114.3]
[1646593520995,0.00329193,86.159,86.1,13.99]
[1646593521294,2.70996841,86.184,86.1,13.99]
[1646593524496,2.70996841,86.184,86.101,2.523]
[1646593524696,2.70996841,86.184,86.101,116.823]
[1646593525097,2.70996841,86.184,86.101,2.523]
[1646593528405,114.3,86.163,86.081,2.524]
[1646593528598,114.3,86.161,86.081,2.524]
[1646593529001,131.7314,86.15,86.081,2.524]
[1646593529200,22.34922885,86.149,86.081,2.524]
[1646593532605,22.34922885,86.149,86.082,0.27575965]
[1646593532903,22.34922885,86.149,86.081,2.524]
[1646593533404,22.34922885,86.149,86.061,114.3]
[1646593534006,22.34922885,86.149,86.07,17.4281]
[1646593534203,22.34922885,86.149,86.071,114.64849991]
[1646593535206,22.34922885,86.149,86.071,114.3]
[1646593535406,22.34922885,86.149,86.08,17.4254]
[1646593535607,22.34922885,86.149,86.082,0.1887486]
[1646593536212,22.34922885,86.149,86.081,114.3]
[1646593536708,22.34922885,86.149,86.082,0.15972426]
[1646593537111,22.34922885,86.149,86.09,17.4234]
[1646593537309,22.34922885,86.149,86.092,56.96043294]
[1646593539613,22.34922885,86.149,86.093,114.3]
[1646593540317,22.6968,86.167,86.093,114.3]
[1646593540914,8.96115189,86.166,86.093,114.3]
[1646593541518,25.11040946,86.165,86.093,114.3]
[1646593541717,8.96115189,86.164,86.093,114.3]
[1646593542319,8.96115189,86.164,86.1,17.4213]
[1646593542518,8.96115189,86.164,86.111,114.3]
[1646593542718,25.11040946,86.165,86.111,114.3]
[1646593543825,8.99784426,86.164,86.11,34.1597]
[1646593544022,8.99784426,86.164,86.11,16.74]
[1646593548343,8.99784426,86.164,86.11,34.1601]
[1646593550247,8.99784426,86.164,86.111,114.3]
[1646593551947,8.99784426,86.164,86.11,34.1601]
[1646593552147,8.99784426,86.164,86.11,16.74]
[1646593555650,8.99784426,86.164,86.111,114.3]
[1646593555848,8.99784426,86.164,86.112,0.17568547]
[1646593556251,8.99784426,86.164,86.111,114.3]
[1646593557451,8.99784426,86.164,86.112,0.21914561]
[1646593558752,0.26282886,86.163,86.11,34.1603]
[1646593559054,8.99784426,86.164,86.11,34.1603]
[1646593561557,3.06444074,86.162,86.11,34.1603]
[1646593562159,8.99784426,86.161,86.11,34.1603]
[1646593562357,12.062285,86.161,86.11,34.1603]
[1646593562958,8.99784426,86.16,86.11,34.1603]
[1646593563158,12.062285,86.16,86.11,34.1603]
[1646593563360,8.99784426,86.159,86.11,34.1603]
[1646593563760,8.99784426,86.16,86.11,34.1603]
[1646593563960,12.062285,86.16,86.11,34.1603]
[1646593564360,8.99784426,86.159,86.11,34.1603]
[1646593565162,3.06444074,86.157,86.11,34.1603]
[1646593565664,2.56444074,86.157,86.11,34.1603]
[1646593566064,2.56444074,86.157,86.111,0.18021757]
[1646593567062,25.11040946,86.165,86.111,0.18021757]
[1646593567266,25.11040946,86.165,86.111,114.48021757]
[1646593567665,9.01653375,86.164,86.111,0.18021757]
[1646593567865,9.01653375,86.164,86.11,34.1603]
[1646593568965,6.15688834,86.163,86.11,34.1603]
[1646593569165,6.15688834,86.163,86.111,5.804]
[1646593569565,9.01653375,86.162,86.11,16.74]
[1646593569769,6.15688834,86.161,86.105,17.5053]
[1646593569965,9.01653375,86.16,86.105,17.5053]
[1646593570165,6.15688834,86.159,86.105,17.5053]
[1646593570468,9.01653375,86.158,86.105,17.5053]
[1646593570665,6.15688834,86.157,86.105,17.5053]
[1646593570866,6.15688834,86.157,86.1,119.33918563]
[1646593571066,6.15688834,86.157,86.101,5.805]
[1646593571269,9.27258461,86.156,86.077,5.805]
[1646593571466,6.15688834,86.155,86.077,5.805]
[1646593571666,6.15688834,86.155,86.05,267.3294]
[1646593571667,0.25605086,86.154,86.072,5.805]
[1646593571867,15.17342209,86.155,86.072,5.805]
[1646593572069,9.01653375,86.153,86.072,5.805]
[1646593572278,6.45943501,86.149,86.072,5.805]
[1646593572470,6.15688834,86.148,86.072,5.805]
[1646593572869,9.01653375,86.147,86.072,5.805]
[1646593573270,6.15688834,86.146,86.09,17.4262]
[1646593573671,9.01653375,86.145,86.09,17.4262]
[1646593574071,6.15688834,86.144,86.09,17.4262]
[1646593574473,17.4293,86.14,86.073,5.805]
[1646593574699,6.15688834,86.139,86.077,5.806]
[1646593574900,15.17342209,86.139,86.072,5.806]
[1646593575097,6.15688834,86.138,86.072,5.806]
[1646593575301,15.17342209,86.138,86.071,17.416]
[1646593575497,6.15688834,86.137,86.071,17.416]
[1646593575698,25.11040946,86.136,86.071,17.416]
[1646593575898,6.15688834,86.135,86.071,17.416]
[1646593576098,15.17342209,86.135,86.071,17.416]
[1646593576299,15.17342209,86.135,86.07,17.4299]
[1646593576300,69.6,86.122,86.048,21.35361287]
[1646593576500,1.53299869,86.108,86.048,21.35361287]
[1646593576699,0.35111845,86.107,85.99,48.3751]
[1646593576901,1.53299869,86.088,85.99,16.74]
[1646593577099,1.53299869,86.084,85.991,5.809]
[1646593577301,17.4451,86.08,85.993,114.3]
[1646593577502,1.53299869,86.069,85.994,5.809]
[1646593577700,1.53299869,86.064,85.994,5.809]
[1646593578000,1.53299869,86.061,85.98,16.74]
[1646593578202,1.53299869,86.06,85.981,5.809]
[1646593578400,1.53299869,86.06,85.981,120.109]
[1646593578600,1.53299869,86.058,85.981,120.109]
[1646593578800,1.53299869,86.058,85.99,17.4432]
[1646593579001,1.53299869,86.057,85.991,5.809]
[1646593579202,6.74785984,86.055,85.991,5.809]
[1646593579602,6.74785984,86.055,85.991,120.109]
[1646593580004,6.74785984,86.055,85.991,5.809]
[1646593580603,6.74785984,86.055,85.991,120.109]
[1646593583310,8.33,86.062,86.001,114.3]
[1646593583509,47.7591,86.07,86.001,114.3]
[1646593583710,47.7591,86.07,86.002,6.00553672]
[1646593584012,47.7591,86.07,86.003,0.20866233]
[1646593584410,47.7591,86.07,86.011,114.3]
[1646593584609,47.7591,86.07,86.037,0.20866233]
[1646593585315,28.30934436,86.099,86.037,0.20866233]
[1646593585512,28.30934436,86.099,86.023,114.3]
[1646593585912,28.30934436,86.099,86.031,114.3]
[1646593586112,28.30934436,86.099,86.033,114.3]
[1646593586312,28.30934436,86.099,86.037,5.809]
[1646593586511,28.30934436,86.099,86.035,50.43884158]
[1646593589914,28.30934436,86.099,86.025,5.809]
[1646593590120,0.24150281,86.098,86.037,5.809]
[1646593590816,0.24150281,86.098,86.024,5.809]
[1646593591217,28.30934436,86.099,86.024,5.809]
[1646593592016,28.30934436,86.099,86.023,5.809]
[1646593592417,28.30934436,86.099,86.031,114.3]
[1646593592620,28.30934436,86.099,86.037,0.16970242]
[1646593593017,28.30934436,86.099,86.031,5.809]
[1646593593716,28.30934436,86.099,86.037,5.809]
[1646593593917,28.30934436,86.099,86.038,0.14770703]
[1646593594120,28.30934436,86.099,86.039,5.809]
[1646593594318,28.30934436,86.099,86.037,5.809]
[1646593594718,29.84234305,86.099,86.038,0.14139445]
[1646593594918,29.84234305,86.099,86.037,5.809]
[1646593596220,29.84234305,86.099,86.036,0.15652119]
[1646593596625,17.4395,86.09,86.036,0.15652119]
[1646593597123,114.40848882,86.089,86.036,0.15652119]
[1646593597324,1.53299869,86.087,86.036,0.15652119]
[1646593597525,1.53299869,86.081,86.036,0.15652119]
[1646593597728,1.53299869,86.078,86.036,0.15652119]
[1646593597927,1.53299869,86.077,86.036,0.15652119]
[1646593598125,1.53299869,86.076,86.036,0.15652119]
[1646593598527,1.53299869,86.077,86.036,0.15652119]
[1646593598732,17.4447,86.07,86.036,0.15652119]
[1646593598928,22.44400321,86.069,86.036,0.15652119]
[1646593603361,1.53299869,86.067,86.001,5.809]
[1646593603761,1.53299869,86.066,86.001,5.809]
[1646593603964,1.53299869,86.067,86.001,5.809]
[1646593604763,1.53299869,86.064,86.0,17.4435]
[1646593604963,1.53299869,86.063,86.0,17.4435]
[1646593606266,17.4451,86.06,85.991,17.2262]
[1646593606465,1.53299869,86.056,85.991,17.2262]
[1646593606665,9.12584126,86.055,85.991,17.2262]
[1646593607767,9.12584126,86.055,86.0,17.4432]
[1646593608169,9.12584126,86.055,86.001,6.09343256]
[1646593608771,9.12584126,86.055,86.011,0.28143256]
[1646593609270,9.12584126,86.055,86.01,17.4429]
[1646593609871,9.12584126,86.055,86.01,67.29523234]
[1646593610072,1.53299869,86.059,86.01,67.29523234]
[1646593610670,1.53299869,86.059,86.011,0.30938152]
[1646593610871,1.53299869,86.059,86.01,67.29523234]
[1646593611471,1.53299869,86.06,86.01,67.29523234]
[1646593611871,1.53299869,86.06,86.01,17.4429]
[1646593612072,1.53299869,86.059,86.01,17.4429]
[1646593612473,1.53299869,86.058,86.01,17.4429]
[1646593613173,1.53299869,86.058,86.011,0.10205706]
[1646593615477,1.53299869,86.057,86.011,0.10205706]
[1646593616978,1.53299869,86.058,86.011,0.10205706]
[1646593617782,1.53299869,86.058,86.011,56.96227609]
[1646593617982,1.53299869,86.058,86.012,0.18454904]
[1646593618380,1.53299869,86.057,86.011,0.10205706]
[1646593618681,1.53299869,86.055,86.0,17.4449]
[1646593618881,1.53299869,86.055,86.001,5.812]
[1646593619081,1.53299869,86.052,86.001,5.812]
[1646593619284,1.53299869,86.053,86.002,58.5162378]
[1646593619481,1.53299869,86.054,86.01,17.4427]
[1646593619882,1.53299869,86.055,86.011,0.14498001]
[1646593620384,1.53299869,86.055,86.01,17.4427]
[1646593621182,1.53299869,86.056,86.01,17.4427]
[1646593621583,1.53299869,86.053,86.01,17.4427]
[1646593622584,1.53299869,86.053,86.011,0.10205706]
[1646593623389,1.53299869,86.052,86.011,0.10205706]
[1646593623785,1.53299869,86.053,86.011,0.10205706]
[1646593623985,1.53299869,86.054,86.011,0.10205706]
[1646593624385,6.56837618,86.048,86.011,0.10205706]
[1646593624987,8.10137487,86.048,86.002,0.10205706]
[1646593625386,1.53299869,86.048,86.002,0.10205706]
[1646593625887,1.53299869,86.048,86.001,5.41405706]
[1646593626088,1.53299869,86.048,86.01,17.4441]
[1646593626288,1.53299869,86.049,86.01,17.4441]
[1646593626501,27.39809504,86.052,86.011,0.1852099]
[1646593626688,27.39809504,86.052,86.01,17.4441]
[1646593629611,27.39809504,86.052,86.011,0.37602062]
[1646593629814,1.53299869,86.055,86.02,17.4402]
[1646593630016,1.53299869,86.055,86.021,0.37602062]
[1646593630215,1.53299869,86.057,86.021,0.37602062]
[1646593630413,1.53299869,86.058,86.002,0.38995242]
[1646593630614,1.53299869,86.065,86.002,0.38995242]
[1646593630919,1.53299869,86.072,86.031,114.3]
[1646593631114,1.53299869,86.09,86.04,16.74]
[1646593631313,1.53299869,86.095,86.041,0.49825627]
[1646593631515,1.53299869,86.112,86.041,0.49825627]
[1646593631714,25.29210571,86.111,86.041,63.48061471]
[1646593632113,26.8251044,86.111,86.061,0.49825627]
[1646593632313,26.8251044,86.111,86.06,17.4318]
[1646593633617,25.29210571,86.111,86.06,17.4318]
[1646593637919,25.29210571,86.111,86.04,74.846]
[1646593638118,25.29210571,86.111,86.05,17.4342]
[1646593640618,25.29210571,86.111,86.051,0.41520488]
[1646593640819,25.29210571,86.111,86.05,17.4342]
[1646593641920,25.29210571,86.111,86.06,17.4313]
[1646593642124,25.29210571,86.111,86.061,61.9567601]
[1646593643120,25.29210571,86.111,86.07,17.4304]
[1646593644921,1.53299869,86.133,86.07,17.4304]
[1646593645423,1.53299869,86.134,86.07,17.4304]
[1646593645722,1.53299869,86.135,86.07,17.4304]
[1646593645921,27.50600816,86.134,86.07,17.4304]
[1646593648421,29.03900685,86.134,86.07,17.4304]
[1646593649824,29.03900685,86.134,86.071,5.807]
[1646593650025,29.03900685,86.134,86.072,0.25852841]
[1646593650424,29.03900685,86.134,86.07,17.4304]
[1646593650925,27.50600816,86.134,86.07,17.4304]
[1646593651325,1.53299869,86.132,86.07,17.4304]
[1646593651525,1.53299869,86.133,86.07,17.4304]
[1646593651926,29.03900685,86.134,86.071,0.27549512]
[1646593652327,27.50600816,86.134,86.071,0.27549512]
[1646593652526,27.50600816,86.134,86.08,17.4286]
[1646593655227,29.03900685,86.134,86.08,17.4286]
[1646593655829,27.50600816,86.134,86.08,17.4286]
[1646593656831,27.50600816,86.134,86.081,0.14086756]
[1646593657232,27.50600816,86.134,86.08,17.4286]
[1646593658132,1.53299869,86.132,86.08,17.4286]
[1646593658333,29.03900685,86.134,86.08,17.4286]
[1646593658733,27.50600816,86.134,86.08,17.4286]
[1646593659032,27.50600816,86.134,86.081,0.1525582]
[1646593660833,27.50600816,86.134,86.08,17.4286]
[1646593661035,27.50600816,86.134,86.081,0.27211162]
[1646593661235,27.50600816,86.134,86.08,17.4286]
[1646593663036,27.50600816,86.134,86.06,16.74]
[1646593663243,1.77799351,86.133,86.06,16.74]
[1646593663637,1.53299869,86.129,86.06,16.74]
[1646593663837,1.77799351,86.128,86.06,103.58160054]
[1646593664040,1.53299869,86.128,86.06,86.84160054]
[1646593664238,1.53299869,86.127,86.06,86.84160054]
[1646593665142,1.53299869,86.127,86.06,104.27290054]
[1646593665339,1.53299869,86.126,86.06,104.27290054]
[1646593665940,1.53299869,86.125,86.06,104.27290054]
[1646593666141,1.53299869,86.125,86.06,17.4313]
[1646593666349,114.5024207,86.119,86.052,5.807]
[1646593666546,71.13299869,86.114,86.034,5.808]
[1646593666850,115.83299869,86.107,86.0,16.74]
[1646593667043,1.53299869,86.099,85.992,46.9686]
[1646593667246,17.4461,86.08,85.992,46.9686]
[1646593667442,114.3,86.079,85.993,5.81]
[1646593667642,17.4461,86.08,85.993,5.81]
[1646593667643,114.3,86.069,85.993,5.81]
[1646593667844,114.3,86.067,85.979,5.811]
[1646593668244,17.4495,86.06,85.979,5.811]
[1646593668443,114.3,86.059,85.979,5.811]
[1646593668643,114.3,86.059,85.978,0.37981909]
[1646593669444,114.3,86.065,85.978,0.37981909]
[1646593670145,114.3,86.049,85.978,0.37981909]
[1646593670344,5.4577665,86.048,85.978,0.37981909]
[1646593670543,114.3,86.046,85.978,0.37981909]
[1646593671145,114.3,86.044,85.978,0.37981909]
[1646593672145,114.3,86.039,85.978,0.37981909]
[1646593673148,114.3,86.044,85.978,0.37981909]
[1646593673346,17.4527,86.03,85.978,0.37981909]
[1646593673545,24.07835628,86.029,85.978,0.37981909]
[1646593677248,17.4547,86.02,85.978,0.37981909]
[1646593678050,114.3,86.019,85.978,0.37981909]
[1646593678450,5.4577665,86.009,85.978,0.37981909]
[1646593678749,80.0,86.008,85.93,17.4553]
[1646593678951,80.0,86.008,85.912,17.2729]
[1646593679150,80.0,86.008,85.913,19.70982619]
[1646593679350,114.3,85.999,85.91,16.74]
[1646593679552,114.3,85.997,85.91,16.74]
[1646593679751,114.3,85.997,85.902,46.2806]
[1646593680055,114.3,85.995,85.894,19.70982619]
[1646593680252,114.3,85.993,85.894,19.70982619]
[1646593680652,17.4647,85.98,85.894,19.70982619]
[1646593680855,114.3,85.977,85.881,19.70982619]
[1646593681052,23.6107,85.979,85.875,46.2806]
[1646593681250,114.3,85.978,85.875,46.2806]
[1646593681451,122.71012632,85.978,85.876,48.74118679]
[1646593681850,122.71012632,85.978,85.875,46.2806]
[1646593682051,17.4706,85.96,85.875,46.2806]
[1646593682251,17.4706,85.96,85.87,40.614]
[1646593682655,17.4706,85.96,85.87,16.74]
[1646593682852,20.74617737,85.959,85.87,16.74]
[1646593683052,17.4707,85.95,85.87,16.74]
[1646593683651,24.1007,85.95,85.87,16.74]
[1646593684152,22.9005,85.958,85.871,19.70982619]
[1646593685556,20.74617737,85.959,85.88,17.4646]
[1646593685757,20.74617737,85.959,85.881,53.2345416]
[1646593685957,20.74617737,85.959,85.881,88.96461727]
[1646593686257,20.74617737,85.959,85.883,0.55545747]
[1646593686656,22.7447,85.969,85.885,0.55545747]
[1646593686858,22.7447,85.969,85.9,16.74]
[1646593687164,22.7447,85.969,85.901,0.55545747]
[1646593687456,22.7447,85.969,85.901,22.50438208]
[1646593687860,22.7447,85.969,85.9,16.74]
[1646593687861,23.10097155,85.968,85.903,0.55545747]
[1646593688059,22.6952,85.989,85.903,0.55545747]
[1646593688258,22.6952,85.989,85.91,17.4588]
[1646593688558,22.6952,85.989,85.911,0.55545747]
[1646593689158,17.458,86.01,85.911,114.85545747]
[1646593689358,24.2088,86.013,85.921,0.63158398]
[1646593689564,24.2088,86.013,85.931,0.63158398]
[1646593689759,24.3326,86.025,85.931,114.93158398]
[1646593689958,24.4273,86.04,85.931,114.93158398]
[1646593690259,24.4273,86.04,85.934,0.63158398]
[1646593690461,24.4273,86.04,85.951,58.36422097]
[1646593690660,24.4273,86.04,85.96,16.74]
[1646593690880,24.4273,86.04,85.961,0.63158398]
[1646593692780,14.4273,86.04,85.96,131.04]
[1646593692984,14.4273,86.04,85.961,0.14183772]
[1646593693381,14.4273,86.04,85.96,16.74]
[1646593693582,14.4273,86.04,85.96,131.04]
[1646593693984,14.4273,86.04,85.96,16.74]
[1646593694182,114.3,86.039,85.96,16.74]
[1646593696985,114.3,86.037,85.96,16.74]
[1646593697685,114.3,86.037,85.951,57.73263699]
[1646593697887,114.3,86.037,85.941,48.9457]
[1646593698089,17.4533,86.03,85.941,48.9457]
[1646593698286,114.3,86.029,85.94,34.1939]
[1646593698487,114.3,86.029,85.92,58.1777]
[1646593698488,114.3,86.017,85.92,16.74]
[1646593698687,114.3,86.015,85.92,16.74]
[1646593698888,114.3,86.013,85.921,47.68208016]
[1646593699289,114.3,86.011,85.921,47.68208016]
[1646593700087,17.4594,86.0,85.921,47.68208016]
[1646593700289,114.3,85.997,85.921,47.68208016]
[1646593701389,104.3,85.997,85.921,47.68208016]
[1646593703790,69.6,85.996,85.921,47.68208016]
[1646593703991,173.9,85.989,85.921,47.68208016]
[1646593704493,2.68450084,85.988,85.921,47.68208016]
[1646593704690,2.68450084,85.988,85.89,34.2038]
[1646593704891,104.3,85.986,85.89,34.2038]
[1646593705092,17.4637,85.98,85.89,56.15272461]
[1646593705294,104.3,85.979,85.89,56.15272461]
[1646593705492,17.4637,85.98,85.89,170.45272461]
[1646593705792,5.81532413,85.979,85.9,17.4621]
[1646593705994,5.81532413,85.979,85.901,0.15357561]
[1646593706193,5.81532413,85.979,85.9,17.4621]
[1646593706793,5.81532413,85.979,85.9,34.2021]
[1646593709100,5.81532413,85.979,85.901,0.17291849]
[1646593710401,5.81532413,85.979,85.91,17.4614]
[1646593710598,5.81532413,85.979,85.911,47.88160038]
[1646593711999,24.0278,85.987,85.911,47.88160038]
[1646593712600,24.0278,85.987,85.92,17.4595]
[1646593712802,24.0278,85.987,85.921,0.46567628]
[1646593713001,2.68450084,86.008,85.921,114.76567628]
[1646593713201,23.3941,86.019,85.931,50.17045568]
[1646593713502,23.3941,86.019,85.941,0.46567628]
[1646593713906,23.3941,86.019,85.951,56.29255155]
[1646593715006,23.3941,86.019,85.96,17.4511]
[1646593715609,23.3941,86.019,85.961,0.20915686]
[1646593718413,23.3941,86.019,85.96,17.4511]
[1646593721122,114.52085837,86.018,85.951,55.82687527]
[1646593721326,186.80535921,86.018,85.934,22.8835]
[1646593721722,2.68450084,86.017,85.93,16.74]
[1646593721923,0.24735734,86.016,85.93,16.74]
[1646593722123,114.3,86.009,85.93,16.74]
[1646593722421,7.85197321,86.009,85.93,16.74]
[1646593722821,13.8441,86.008,85.93,16.74]
[1646593723022,13.8441,86.008,85.93,131.04]
[1646593723222,13.8441,86.008,85.931,0.16049567]
[1646593723424,13.8441,86.008,85.94,17.4551]
[1646593723622,13.8441,86.008,85.941,0.15150286]
[1646593723827,13.8441,86.008,85.94,17.4551]